Workbook

Sheet Flows
J1: =$I$1/60 -> 0 | K1: =$J$1/$D$1 -> 
I2: Enter Discharge Pressure here (bar) | L2: 10 | M2: for kW calculation | W2: All input is done in the yellow boxes 1. Input the maximum discharge pressure in cell K2 2. Input the required flow rate in column H and then the chosen row for the pump and CAM choice.
I3: Enter Temperature here (°C) | L3: 0 | M3: for oil change calculation
I4: Absorbed Power, before Transmission Losses
I5: Flows @ 60 bar unless otherwise stated
B6: Pump | C6: Cam | D6: Litre/Rev | E6: @ 1450 rpm | F6: @ 960 rpm | G6: @ 730 rpm | H6: Req'd Flow | I6: Req'd Flow | J6: Req'd Flow | K6: RPM | L6: Power kW @ SG=1 | M6: Oil Change Interval | N6: Torque Req. Nm | O6: Service Factor | P6: Slope | Q6: Intercept | R6: Motor Base Speed RPM | S6: Motor Power Req'd | T6: Forced Vent Req'd? | U6: Encoder Req'd? | V6: Realistic Application?
H7: m3/hr | I7: litres/hr | J7: litres/min | M7: hours
B8: G20 / G21 / G22 | C8: X | D8: =E8/1450 -> 0.002165517241 | E8: 3.14 | F8: =D8*960 -> 2.078896552 | G8: =D8*730 -> 1.580827586 | H8: 0 | I8: =$H$8*1000 -> 0 | J8: =$I$8/60 -> 0 | K8: =$J$8/$D$8 -> 0 | L8: =($L$2*0.122495179*K8/9550) -> 0 | M8: =IF(K8>10,IF((P8*O8)+Q8>1000,IF($L$3<100,(P8*O8)+Q8,"Use Cooler"),"Use Cooler"),NA()) ->  | N8: =IFERROR(L8*9550/K8,"-") -> - | O8: =(K8*$L$2*14.5*IF($L$3<35,1,IF($L$3<60,1.3,IF($L$3<85,1.6,IF($L$3<105,2,2.5)))))/1000 -> 0 | P8: -2.594776748 | Q8: 6489.46925 | R8: 1450 | S8: =($L$2*0.122495179*R8/9550) -> 0.1859874446 | T8: =IF(K8<(R8/2),TRUE,FALSE) -> TRUE | U8: =IF(K8<R8/10,TRUE,FALSE) -> TRUE | V8: =IF(K8<R8/50,FALSE,TRUE) -> FALSE
C9: E | D9: =E9/1450 -> 0.001579310345 | E9: 2.29 | F9: =D9*960 -> 1.516137931 | G9: =D9*730 -> 1.152896552 | H9: 0 | I9: =$H$9*1000 -> 0 | J9: =$I$9/60 -> 0 | K9: =$J$9/$D$9 -> 0 | L9: =($L$2*0.0911364131975407*K9/9550) -> 0 | M9: =IF(K9>10,IF((P9*O9)+Q9>1000,IF($L$3<100,(P9*O9)+Q9,"Use Cooler"),"Use Cooler"),NA()) ->  | N9: =IFERROR(L9*9550/K9,"-") -> - | O9: =(K9*$L$2*14.5*IF($L$3<35,1,IF($L$3<60,1.3,IF($L$3<85,1.6,IF($L$3<105,2,2.5)))))/1000 -> 0 | P9: -2.594776748 | Q9: 6489.46925 | S9: =($L$2*0.0911364131975407*R9/9550) -> 0 | W9: Very Important Note The value given for the KW absorbed power is for the pump not the motor. In selecting the right motor you must check the motor data sheet and make sure that the motor chosen will give the power at the specific RPM
C10: S | D10: =E10/1450 -> 0.001186206897 | E10: 1.72 | F10: =D10*960 -> 1.138758621 | G10: =D10*730 -> 0.8659310345 | H10: 0 | I10: =$H$10*1000 -> 0 | J10: =$I$10/60 -> 0 | K10: =$J$10/$D$10 -> 0 | L10: =($L$2*0.0734971074173716*K10/9550) -> 0 | M10: =IF(K10>10,IF((P10*O10)+Q10>1000,IF($L$3<100,(P10*O10)+Q10,"Use Cooler"),"Use Cooler"),NA()) ->  | N10: =IFERROR(L10*9550/K10,"-") -> - | O10: =(K10*$L$2*14.5*IF($L$3<35,1,IF($L$3<60,1.3,IF($L$3<85,1.6,IF($L$3<105,2,2.5)))))/1000 -> 0 | P10: -2.594776748 | Q10: 6489.46925 | S10: =($L$2*0.0734971074173716*R10/9550) -> 0
C11: B | D11: =E11/1450 -> 0.0007103448276 | E11: 1.03 | F11: =D11*960 -> 0.6819310345 | G11: =D11*730 -> 0.5185517241 | H11: 0 | I11: =$H$11*1000 -> 0 | J11: =$I$11/60 -> 0 | K11: =$J$11/$D$11 -> 0 | L11: =($L$2*0.0460581873148862*K11/9550) -> 0 | M11: =IF(K11>10,IF((P11*O11)+Q11>1000,IF($L$3<100,(P11*O11)+Q11,"Use Cooler"),"Use Cooler"),NA()) ->  | N11: =IFERROR(L11*9550/K11,"-") -> - | O11: =(K11*$L$2*14.5*IF($L$3<35,1,IF($L$3<60,1.3,IF($L$3<85,1.6,IF($L$3<105,2,2.5)))))/1000 -> 0 | P11: -2.594776748 | Q11: 6489.46925 | S11: =($L$2*0.0460581873148862*R11/9550) -> 0
C12: G | D12: =E12/1450 -> 0.0004344827586 | E12: 0.63 | F12: =D12*960 -> 0.4171034483 | G12: =D12*730 -> 0.3171724138 | H12: 0 | I12: =$H$12*1000 -> 0 | J12: =$I$12/60 -> 0 | K12: =$J$12/$D$12 -> 0 | L12: =($L$2*0.0333186886958751*K12/9550) -> 0 | M12: =IF(K12>10,IF((P12*O12)+Q12>1000,IF($L$3<100,(P12*O12)+Q12,"Use Cooler"),"Use Cooler"),NA()) ->  | N12: =IFERROR(L12*9550/K12,"-") -> - | O12: =(K12*$L$2*14.5*IF($L$3<35,1,IF($L$3<60,1.3,IF($L$3<85,1.6,IF($L$3<105,2,2.5)))))/1000 -> 0 | P12: -2.594776748 | Q12: 6489.46925 | S12: =($L$2*0.0333186886958751*R12/9550) -> 0
B14: G03 / G13 | C14: X | D14: =E14/1450 -> 0.006413793103 | E14: 9.3 | F14: =D14*960 -> 6.157241379 | G14: =D14*730 -> 4.682068966 | H14: 0 | I14: =$H$14*1000 -> 0 | J14: =$I$14/60 -> 0 | K14: =$J$14/$D$14 -> 0 | L14: =(J14*$L$2/511)+(6*K14/84428) -> 0 | M14: =IF(K14>10,IF((P14*O14)+Q14>1000,IF($L$3<100,(P14*O14)+Q14,"Use Cooler"),"Use Cooler"),NA()) ->  | N14: =IFERROR(L14*9550/K14,"-") -> - | O14: =(K14*$L$2*14.5*IF($L$3<35,1,IF($L$3<60,1.3,IF($L$3<85,1.6,IF($L$3<105,2,2.5)))))/1000 -> 0 | P14: -2.033195021 | Q14: 6159.751037 | S14: =(N14*$L$2/511)+(6*R14/84428) -> 
C15: E | D15: =E15/1450 -> 0.004689655172 | E15: 6.8 | F15: =D15*960 -> 4.502068966 | G15: =D15*730 -> 3.423448276 | H15: 0 | I15: =$H$15*1000 -> 0 | J15: =$I$15/60 -> 0 | K15: =$J$15/$D$15 -> 0 | L15: =(J15*$L$2/511)+(6*K15/84428) -> 0 | M15: =IF(K15>10,IF((P15*O15)+Q15>1000,IF($L$3<100,(P15*O15)+Q15,"Use Cooler"),"Use Cooler"),NA()) ->  | N15: =IFERROR(L15*9550/K15,"-") -> - | O15: =(K15*$L$2*14.5*IF($L$3<35,1,IF($L$3<60,1.3,IF($L$3<85,1.6,IF($L$3<105,2,2.5)))))/1000 -> 0 | P15: -2.033195021 | Q15: 6159.751037 | S15: =(N15*$L$2/511)+(6*R15/84428) -> 
C16: S | D16: =E16/1450 -> 0.003862068966 | E16: 5.6 | F16: =D16*960 -> 3.707586207 | G16: =D16*730 -> 2.819310345 | H16: 0 | I16: =$H$16*1000 -> 0 | J16: =$I$16/60 -> 0 | K16: =$J$16/$D$16 -> 0 | L16: =(J16*$L$2/511)+(6*K16/84428) -> 0 | M16: =IF(K16>10,IF((P16*O16)+Q16>1000,IF($L$3<100,(P16*O16)+Q16,"Use Cooler"),"Use Cooler"),NA()) ->  | N16: =IFERROR(L16*9550/K16,"-") -> - | O16: =(K16*$L$2*14.5*IF($L$3<35,1,IF($L$3<60,1.3,IF($L$3<85,1.6,IF($L$3<105,2,2.5)))))/1000 -> 0 | P16: -2.033195021 | Q16: 6159.751037 | S16: =(N16*$L$2/511)+(6*R16/84428) -> 
C17: B | D17: =E17/1450 -> 0.002413793103 | E17: 3.5 | F17: =D17*960 -> 2.317241379 | G17: =D17*730 -> 1.762068966 | H17: 0 | I17: =$H$17*1000 -> 0 | J17: =$I$17/60 -> 0 | K17: =$J$17/$D$17 -> 0 | L17: =(J17*$L$2/511)+(6*K17/84428) -> 0 | M17: =IF(K17>10,IF((P17*O17)+Q17>1000,IF($L$3<100,(P17*O17)+Q17,"Use Cooler"),"Use Cooler"),NA()) ->  | N17: =IFERROR(L17*9550/K17,"-") -> - | O17: =(K17*$L$2*14.5*IF($L$3<35,1,IF($L$3<60,1.3,IF($L$3<85,1.6,IF($L$3<105,2,2.5)))))/1000 -> 0 | P17: -2.033195021 | Q17: 6159.751037 | S17: =(N17*$L$2/511)+(6*R17/84428) -> 
C18: G | D18: =E18/1450 -> 0.001034482759 | E18: 1.5 | F18: =D18*960 -> 0.9931034483 | G18: =D18*730 -> 0.7551724138 | H18: 0 | I18: =$H$18*1000 -> 0 | J18: =$I$18/60 -> 0 | K18: =$J$18/$D$18 -> 0 | L18: =(J18*$L$2/511)+(6*K18/84428) -> 0 | M18: =IF(K18>10,IF((P18*O18)+Q18>1000,IF($L$3<100,(P18*O18)+Q18,"Use Cooler"),"Use Cooler"),NA()) ->  | N18: =IFERROR(L18*9550/K18,"-") -> - | O18: =(K18*$L$2*14.5*IF($L$3<35,1,IF($L$3<60,1.3,IF($L$3<85,1.6,IF($L$3<105,2,2.5)))))/1000 -> 0 | P18: -2.033195021 | Q18: 6159.751037 | S18: =(N18*$L$2/511)+(6*R18/84428) -> 
B20: G04 | C20: X | D20: 0.0062857 | E20: =D20*1450 -> 9.114265 | F20: =D20*960 -> 6.034272 | G20: =D20*730 -> 4.588561 | H20: 0 | I20: =$H$20*1000 -> 0 | J20: =$I$20/60 -> 0 | K20: =$J$20/$D$20 -> 0 | L20: =(6*K20/84428)+(J20*L$2)/(511-((L$2-35)/4)) -> 0 | M20: =IF(K20>10,IF((P20*O20)+Q20>1000,IF($L$3<100,(P20*O20)+Q20,"Use Cooler"),"Use Cooler"),NA()) ->  | N20: =IFERROR(L20*9550/K20,"-") -> - | O20: =(K20*$L$2*14.5*IF($L$3<35,1,IF($L$3<60,1.3,IF($L$3<85,1.6,IF($L$3<105,2,2.5)))))/1000 -> 0 | P20: -0.9721398933 | Q20: 6133.372851 | S20: =(6*R20/84428)+(N20*S$2)/(511-((S$2-35)/4)) -> 
B21: (Flows at 170 bar) | C21: E | D21: 0.004571 | E21: =D21*1450 -> 6.62795 | F21: =D21*960 -> 4.38816 | G21: =D21*730 -> 3.33683 | H21: 0 | I21: =$H$21*1000 -> 0 | J21: =$I$21/60 -> 0 | K21: =$J$21/$D$21 -> 0 | L21: =(6*K21/84428)+(J21*L$2)/(511-((L$2-35)/4)) -> 0 | M21: =IF(K21>10,IF((P21*O21)+Q21>1000,IF($L$3<100,(P21*O21)+Q21,"Use Cooler"),"Use Cooler"),NA()) ->  | N21: =IFERROR(L21*9550/K21,"-") -> - | O21: =(K21*$L$2*14.5*IF($L$3<35,1,IF($L$3<60,1.3,IF($L$3<85,1.6,IF($L$3<105,2,2.5)))))/1000 -> 0 | P21: -0.9721398933 | Q21: 6133.372851 | S21: =(6*R21/84428)+(N21*S$2)/(511-((S$2-35)/4)) -> 
C22: S | D22: 0.0034857 | E22: =D22*1450 -> 5.054265 | F22: =D22*960 -> 3.346272 | G22: =D22*730 -> 2.544561 | H22: 0 | I22: =$H$22*1000 -> 0 | J22: =$I$22/60 -> 0 | K22: =$J$22/$D$22 -> 0 | L22: =(6*K22/84428)+(J22*L$2)/(511-((L$2-35)/4)) -> 0 | M22: =IF(K22>10,IF((P22*O22)+Q22>1000,IF($L$3<100,(P22*O22)+Q22,"Use Cooler"),"Use Cooler"),NA()) ->  | N22: =IFERROR(L22*9550/K22,"-") -> - | O22: =(K22*$L$2*14.5*IF($L$3<35,1,IF($L$3<60,1.3,IF($L$3<85,1.6,IF($L$3<105,2,2.5)))))/1000 -> 0 | P22: -0.9721398933 | Q22: 6133.372851 | S22: =(6*R22/84428)+(N22*S$2)/(511-((S$2-35)/4)) -> 
B24: G10 / G12 | C24: X | D24: 0.0211 | E24: =D24*1450 -> 30.595 | F24: =D24*960 -> 20.256 | G24: =D24*730 -> 15.403 | H24: 0 | I24: =$H$24*1000 -> 0 | J24: =$I$24/60 -> 0 | K24: =$J$24/$D$24 -> 0 | L24: =(J24*$L$2/511)+(15*K24/84428) -> 0 | M24: =IF(K24>10,IF((P24*O24)+Q24>1000,IF($L$3<100,(P24*O24)+Q24,"Use Cooler"),"Use Cooler"),NA()) ->  | N24: =IFERROR(L24*9550/K24,"-") -> - | O24: =(K24*$L$2*14.5*IF($L$3<35,1,0.927924*EXP(0.009267*$L$3)))/1000 -> 0 | P24: -2.594776748 | Q24: 6489.46925 | S24: =(N24*$L$2/511)+(15*R24/84428) -> 
C25: E | D25: 0.0191 | E25: =D25*1450 -> 27.695 | F25: =D25*960 -> 18.336 | G25: =D25*730 -> 13.943 | H25: 0 | I25: =$H$25*1000 -> 0 | J25: =$I$25/60 -> 0 | K25: =$J$25/$D$25 -> 0 | L25: =(J25*$L$2/511)+(15*K25/84428) -> 0 | M25: =IF(K25>10,IF((P25*O25)+Q25>1000,IF($L$3<100,(P25*O25)+Q25,"Use Cooler"),"Use Cooler"),NA()) ->  | N25: =IFERROR(L25*9550/K25,"-") -> - | O25: =(K25*$L$2*14.5*IF($L$3<35,1,IF($L$3<60,1.3,IF($L$3<85,1.6,IF($L$3<105,2,2.5)))))/1000 -> 0 | P25: -2.594776748 | Q25: 6489.46925 | S25: =(N25*$L$2/511)+(15*R25/84428) -> 
C26: S | D26: =18.8/1450 -> 0.01296551724 | E26: 18.8 | F26: =D26*960 -> 12.44689655 | G26: =D26*730 -> 9.464827586 | H26: 0 | I26: =$H$26*1000 -> 0 | J26: =$I$26/60 -> 0 | K26: =$J$26/$D$26 -> 0 | L26: =(J26*$L$2/511)+(15*K26/84428) -> 0 | M26: =IF(K26>10,IF((P26*O26)+Q26>1000,IF($L$3<100,(P26*O26)+Q26,"Use Cooler"),"Use Cooler"),NA()) ->  | N26: =IFERROR(L26*9550/K26,"-") -> - | O26: =(K26*$L$2*14.5*IF($L$3<35,1,IF($L$3<60,1.3,IF($L$3<85,1.6,IF($L$3<105,2,2.5)))))/1000 -> 0 | P26: -2.594776748 | Q26: 6489.46925 | S26: =(N26*$L$2/511)+(15*R26/84428) -> 
C27: I | D27: =12.5/1450 -> 0.008620689655 | E27: 12.5 | F27: =D27*960 -> 8.275862069 | G27: =D27*730 -> 6.293103448 | H27: 0 | I27: =$H$27*1000 -> 0 | J27: =$I$27/60 -> 0 | K27: =$J$27/$D$27 -> 0 | L27: =(J27*$L$2/511)+(15*K27/84428) -> 0 | M27: =IF(K27>10,IF((P27*O27)+Q27>1000,IF($L$3<100,(P27*O27)+Q27,"Use Cooler"),"Use Cooler"),NA()) ->  | N27: =IFERROR(L27*9550/K27,"-") -> - | O27: =(K27*$L$2*14.5*IF($L$3<35,1,IF($L$3<60,1.3,IF($L$3<85,1.6,IF($L$3<105,2,2.5)))))/1000 -> 0 | P27: -2.594776748 | Q27: 6489.46925 | S27: =(N27*$L$2/511)+(15*R27/84428) -> 
B29: G15 / G17 | C29: X | D29: 0.03311 | E29: =1450*D29 -> 48.0095 | F29: =D29*960 -> 31.7856 | G29: =D29*730 -> 24.1703 | H29: 0 | I29: =$H$29*1000 -> 0 | J29: =$I$29/60 -> 0 | K29: =$J$29/$D$29 -> 0 | L29: =(80*K29/84428)+(J29*$L$2)/(511-(($L$2-35)/4)) -> 0 | M29: =IF(K29>10,IF((P29*O29)+Q29>1000,IF($L$3<100,(P29*O29)+Q29,"Use Cooler"),"Use Cooler"),NA()) ->  | N29: =IFERROR(L29*9550/K29,"-") -> - | O29: =(K29*$L$2*14.5*IF($L$3<35,1,IF($L$3<60,1.3,IF($L$3<85,1.6,IF($L$3<105,2,2.5)))))/1000 -> 0 | P29: -2.309337135 | Q29: 6974.340699 | S29: =(80*R29/84428)+(N29*$L$2)/(511-(($L$2-35)/4)) -> 
B30: @138 bar | C30: E | D30: 0.03 | E30: =1450*D30 -> 43.5 | F30: =D30*960 -> 28.8 | G30: =D30*730 -> 21.9 | H30: 0 | I30: =$H$30*1000 -> 0 | J30: =$I$30/60 -> 0 | K30: =$J$30/$D$30 -> 0 | L30: =(80*K30/84428)+(J30*$L$2)/(511-(($L$2-35)/4)) -> 0 | M30: =IF(K30>10,IF((P30*O30)+Q30>1000,IF($L$3<100,(P30*O30)+Q30,"Use Cooler"),"Use Cooler"),NA()) ->  | N30: =IFERROR(L30*9550/K30,"-") -> - | O30: =(K30*$L$2*14.5*IF($L$3<35,1,IF($L$3<60,1.3,IF($L$3<85,1.6,IF($L$3<105,2,2.5)))))/1000 -> 0 | P30: -2.309337135 | Q30: 6974.340699 | S30: =(80*R30/84428)+(N30*$L$2)/(511-(($L$2-35)/4)) -> 
B32: G25 | C32: X | D32: 0.0723013692 | E32: N/A | F32: 69 | G32: =D32*730 -> 52.77999952 | H32: 0 | I32: =$H$32*1000 -> 0 | J32: =$I$32/60 -> 0 | K32: =$J$32/$D$32 -> 0 | L32: =(J32*$L$2/511)+(50*K32/84428) -> 0 | M32: =IF(K32>10,IF((P32*O32)+Q32>1000,IF($L$3<100,(P32*O32)+Q32,"Use Cooler"),"Use Cooler"),NA()) ->  | N32: =IFERROR(L32*9550/K32,"-") -> - | O32: =(K32*$L$2*14.5*IF($L$3<35,1,IF($L$3<60,1.3,IF($L$3<85,1.6,IF($L$3<105,2,2.5)))))/1000 -> 0 | P32: -3.5 | Q32: 5825 | S32: =(N32*$L$2/511)+(50*R32/84428) -> 
C33: E | D33: 0.0668 | F33: 63 | G33: =D33*730 -> 48.764 | H33: 0 | I33: =$H$33*1000 -> 0 | J33: =$I$33/60 -> 0 | K33: =$J$33/$D$33 -> 0 | L33: =(J33*$L$2/511)+(50*K33/84428) -> 0 | M33: =IF(K33>10,IF((P33*O33)+Q33>1000,IF($L$3<100,(P33*O33)+Q33,"Use Cooler"),"Use Cooler"),NA()) ->  | N33: =IFERROR(L33*9550/K33,"-") -> - | O33: =(K33*$L$2*14.5*IF($L$3<35,1,IF($L$3<60,1.3,IF($L$3<85,1.6,IF($L$3<105,2,2.5)))))/1000 -> 0 | P33: -3.5 | Q33: 5825 | S33: =(N33*$L$2/511)+(50*R33/84428) -> 
C34: S | D34: 0.0535 | F34: 50 | G34: =D34*730 -> 39.055 | H34: 0 | I34: =$H$34*1000 -> 0 | J34: =$I$34/60 -> 0 | K34: =$J$34/$D$34 -> 0 | L34: =(J34*$L$2/511)+(50*K34/84428) -> 0 | M34: =IF(K34>10,IF((P34*O34)+Q34>1000,IF($L$3<100,(P34*O34)+Q34,"Use Cooler"),"Use Cooler"),NA()) ->  | N34: =IFERROR(L34*9550/K34,"-") -> - | O34: =(K34*$L$2*14.5*IF($L$3<35,1,IF($L$3<60,1.3,IF($L$3<85,1.6,IF($L$3<105,2,2.5)))))/1000 -> 0 | P34: -3.5 | Q34: 5825 | S34: =(N34*$L$2/511)+(50*R34/84428) -> 
C35: I | D35: 0.041 | F35: 36 | G35: =D35*730 -> 29.93 | H35: 0 | I35: =$H$35*1000 -> 0 | J35: =$I$35/60 -> 0 | K35: =$J$35/$D$35 -> 0 | L35: =(J35*$L$2/511)+(50*K35/84428) -> 0 | M35: =IF(K35>10,IF((P35*O35)+Q35>1000,IF($L$3<100,(P35*O35)+Q35,"Use Cooler"),"Use Cooler"),NA()) ->  | N35: =IFERROR(L35*9550/K35,"-") -> - | O35: =(K35*$L$2*14.5*IF($L$3<35,1,IF($L$3<60,1.3,IF($L$3<85,1.6,IF($L$3<105,2,2.5)))))/1000 -> 0 | P35: -3.5 | Q35: 5825 | S35: =(N35*$L$2/511)+(50*R35/84428) -> 
B37: G35 | E37: @1050 max
C38: X | D38: =F38/960 -> 0.1322916667 | E38: 140 | F38: 127 | G38: =D38*730 -> 96.57291667 | H38: 0 | I38: =$H$38*1000 -> 0 | J38: =$I$38/60 -> 0 | K38: =$J$38/$D$38 -> 0 | L38: =(J38*$L$2/511)+(100*K38/84428) -> 0 | M38: =IF(K38>10,IF((P38*O38)+Q38>1000,IF($L$3<100,(P38*O38)+Q38,"Use Cooler"),"Use Cooler"),NA()) ->  | N38: =IFERROR(L38*9550/K38,"-") -> - | O38: =(K38*$L$2*14.5*IF($L$3<35,1,IF($L$3<60,1.3,IF($L$3<85,1.6,IF($L$3<105,2,2.5)))))/1000 -> 0 | P38: -2.9452771 | Q38: 5945.974207 | S38: =(N38*$L$2/511)+(100*R38/84428) -> 
E39: @1150 max
C40: E | D40: =F40/960 -> 0.1145833333 | E40: 132 | F40: 110 | G40: =D40*730 -> 83.64583333 | H40: 0 | I40: =$H$40*1000 -> 0 | J40: =$I$40/60 -> 0 | K40: =$J$40/$D$40 -> 0 | L40: =(J40*$L$2/511)+(100*K40/84428) -> 0 | M40: =IF(K40>10,IF((P40*O40)+Q40>1000,IF($L$3<100,(P40*O40)+Q40,"Use Cooler"),"Use Cooler"),NA()) ->  | N40: =IFERROR(L40*9550/K40,"-") -> - | O40: =(K40*$L$2*14.5*IF($L$3<35,1,IF($L$3<60,1.3,IF($L$3<85,1.6,IF($L$3<105,2,2.5)))))/1000 -> 0 | P40: -2.9452771 | Q40: 5945.974207 | S40: =(N40*$L$2/511)+(100*R40/84428) -> 
B42: G66 | C42: X | D42: 0.248 | E42: 1000 max | F42: 238.08 | G42: 181.04 | H42: 0 | I42: =$H$42*1000 -> 0 | J42: =$I$42/60 -> 0 | K42: =$J$42/$D$42 -> 0 | L42: =(J42*$L$2/511)+(100*K42/84428) -> 0 | M42: =IF(K42>10,IF((P42*O42)+Q42>1000,IF($L$3<100,(P42*O42)+Q42,"Use Cooler"),"Use Cooler"),NA()) ->  | N42: =IFERROR(L42*9550/K42,"-") -> - | O42: =(K42*$L$2*14.5*IF($L$3<35,1,IF($L$3<60,1.3,IF($L$3<85,1.6,IF($L$3<105,2,2.5)))))/1000 -> 0 | P42: =NA() ->  | S42: =(N42*$L$2/511)+(100*R42/84428) -> 
E44: @ 450 rpm | F44: @ 45 rpm (Minimum Speed) | G44: Minimum speed at input discharge pressure RPM
A45: Low Pressure | B45: T100E | W45: Pick the row which is closest to the operating discharge pressure to enter flow rate.
B46: (35 Bar) | D46: 0.835 | E46: =D46*450 -> 375.75 | F46: =D46*200 -> 167 | G46: =$L$2/(103/45) -> 4.368932039 | H46: =$I$46/1000 -> 0 | I46: =$J$46*60 -> 0 | K46: =$J$46/$D$46 -> 0 | L46: =J46*$L$2/511 -> 0 | M46: 2000 | N46: =IFERROR(L46*9550/K46,"-") -> - | S46: =N46*$L$2/511 -> 
B47: (69 Bar) | D47: 0.825 | E47: =D47*450 -> 371.25 | F47: =D47*200 -> 165 | H47: =$I$47/1000 -> 0 | I47: =$J$47*60 -> 0 | K47: =$J$47/$D$47 -> 0 | L47: =J47*$L$2/511 -> 0 | M47: 2000 | N47: =IFERROR(L47*9550/K47,"-") -> - | S47: =N47*$L$2/511 -> 
B48: (103 Bar) | D48: 0.814 | E48: =D48*450 -> 366.3 | F48: =D48*200 -> 162.8 | H48: =$I$48/1000 -> 0 | I48: =$J$48*60 -> 0 | K48: =$J$48/$D$48 -> 0 | L48: =J48*$L$2/511 -> 0 | M48: 2000 | N48: =IFERROR(L48*9550/K48,"-") -> - | S48: =N48*$L$2/511 -> 
B50: T100F
B51: (35 Bar) | H51: =$I$51/1000 -> 0 | I51: =$J$51*60 -> 0 | K51: =$J$51/$D$51 ->  | N51: =IFERROR(L51*9550/K51,"-") -> -
B52: (69 Bar) | H52: =$I$52/1000 -> 0 | I52: =$J$52*60 -> 0 | K52: =$J$52/$D$52 ->  | N52: =IFERROR(L52*9550/K52,"-") -> -
B53: (127 Bar) | D53: =290/450 -> 0.6444444444 | E53: =D53*450 -> 290 | F53: =D53*200 -> 128.8888889 | G53: =$L$2/(127/45) -> 3.543307087 | H53: =$I$53/1000 -> 0 | I53: =$J$53*60 -> 0 | K53: =$J$53/$D$53 -> 0 | L53: =J53*$L$2/511 -> 0 | M53: 2000 | N53: =IFERROR(L53*9550/K53,"-") -> -
B55: T100H
B56: (35 Bar) | H56: =$I$56/1000 -> 0 | I56: =$J$56*60 -> 0 | K56: =$J$56/$D$56 ->  | N56: =IFERROR(L56*9550/K56,"-") -> -
B57: (69 Bar) | H57: =$I$57/1000 -> 0 | I57: =$J$57*60 -> 0 | K57: =$J$57/$D$57 ->  | N57: =IFERROR(L57*9550/K57,"-") -> -
B58: (144 Bar) | D58: =258/450 -> 0.5733333333 | E58: =D58*450 -> 258 | F58: =D58*200 -> 114.6666667 | G58: =$L$2/(144/45) -> 3.125 | H58: 0 | I58: =$H$58*1000 -> 0 | J58: =$I$58/60 -> 0 | K58: =$J$58/$D$58 -> 0 | L58: =J58*$L$2/511 -> 0 | M58: 2000 | N58: =IFERROR(L58*9550/K58,"-") -> -
A60: Med Pressure | B60: T100K
B61: (207 bar) | D61: =E61/450 -> 0.3844444444 | E61: 173 | F61: 76.88888889 | G61: =$L$2/(207/45) -> 2.173913043 | H61: =$I$61/1000 -> 0 | I61: =$J$61*60 -> 0 | K61: =$J$61/$D$61 -> 0 | L61: =J61*$L$2/511 -> 0 | M61: 2000 | N61: =IFERROR(L61*9550/K61,"-") -> - | S61: =N61*$L$2/511 -> 
B62: (103 bar) | D62: =E62/450 -> 0.3977777778 | E62: 179 | F62: 80 | H62: =$I$62/1000 -> 0 | I62: =$J$62*60 -> 0 | K62: =$J$62/$D$62 -> 0 | L62: =J62*$L$2/511 -> 0 | M62: 2000 | N62: =IFERROR(L62*9550/K62,"-") -> - | S62: =N62*$L$2/511 -> 
B63: (35 bar) | D63: =E63/450 -> 0.4088888889 | E63: 184 | F63: 82 | H63: =$I$63/1000 -> 0 | I63: =$J$63*60 -> 0 | K63: =$J$63/$D$63 -> 0 | L63: =J63*$L$2/511 -> 0 | M63: 2000 | N63: =IFERROR(L63*9550/K63,"-") -> - | S63: =N63*$L$2/511 -> 
B65: T100M
B66: (245 bar) | D66: =E66/450 -> 0.32 | E66: 144 | F66: =E66*200/450 -> 64 | G66: =$L$2/(245/45) -> 1.836734694 | H66: =$I$66/1000 -> 0 | I66: =$J$66*60 -> 0 | K66: =$J$66/$D$66 -> 0 | L66: =J66*$L$2/511 -> 0 | M66: 2000 | N66: =IFERROR(L66*9550/K66,"-") -> - | S66: =N66*$L$2/511 -> 
A68: High Pressure | B68: T100S
B69: (35 Bar) | D69: 0.249 | E69: 110 | F69: 49 | G69: =$L$2/(345/45) -> 1.304347826 | H69: =$I$69/1000 -> 0 | I69: =$J$69*60 -> 0 | K69: =$J$69/$D$69 -> 0 | L69: =J69*$L$2/511 -> 0 | M69: 2000 | N69: =IFERROR(L69*9550/K69,"-") -> - | S69: =N69*$L$2/511 -> 
B70: (172 Bar) | D70: 0.237 | E70: 104 | F70: 47 | H70: =$I$70/1000 -> 0 | I70: =$J$70*60 -> 0 | K70: =$J$70/$D$70 -> 0 | L70: =J70*$L$2/511 -> 0 | M70: 2000 | N70: =IFERROR(L70*9550/K70,"-") -> - | S70: =N70*$L$2/511 -> 
B71: (345 Bar) | D71: 0.222 | E71: 98 | F71: 43 | H71: =$I$71/1000 -> 0 | I71: =$J$71*60 -> 0 | K71: =$J$71/$D$71 -> 0 | L71: =J71*$L$2/511 -> 0 | M71: 2000 | N71: =IFERROR(L71*9550/K71,"-") -> - | S71: =N71*$L$2/511 -> 
E73: @ 450 rpm | F73: @ 45 rpm (Minimum Speed) | G73: Minimum speed at input discharge pressure RPM
A74: Low Pressure | B74: Q155E | W74: Pick the row which is closest to the operating discharge pressure to enter flow rate.
B75: (35 Bar) | D75: 1.354 | E75: =D75*450 -> 609.3 | F75: =D75*200 -> 270.8 | G75: =$L$2/(103/45) -> 4.368932039 | H75: 0 | I75: =$H$75*1000 -> 0 | J75: =$I$75/60 -> 0 | K75: =$J$75/$D$75 -> 0 | L75: =J75*$L$2/511 -> 0 | M75: 2000 | N75: =IFERROR(L75*9550/K75,"-") -> - | S75: =N75*$L$2/511 -> 
B76: (69 Bar) | D76: 1.338 | E76: =D76*450 -> 602.1 | F76: =D76*200 -> 267.6 | H76: =$I$76/1000 -> 0 | I76: =$J$76*60 -> 0 | K76: =$J$76/$D$76 -> 0 | L76: =J76*$L$2/511 -> 0 | M76: 2000 | N76: =IFERROR(L76*9550/K76,"-") -> - | S76: =N76*$L$2/511 -> 
B77: (103 Bar) | D77: 1.323 | E77: =D77*450 -> 595.35 | F77: =D77*200 -> 264.6 | H77: 0 | I77: =$H$77*1000 -> 0 | J77: =$I$77/60 -> 0 | K77: =$J$77/$D$77 -> 0 | L77: =J77*$L$2/511 -> 0 | M77: 2000 | N77: =IFERROR(L77*9550/K77,"-") -> - | S77: =N77*$L$2/511 -> 
B79: Q155F
B80: (35 Bar) | D80: 1.102 | E80: =D80*450 -> 495.9 | F80: =D80*200 -> 220.4 | G80: =$L$2/(127/45) -> 3.543307087 | H80: =$I$80/1000 -> 0 | I80: =$J$80*60 -> 0 | K80: =$J$80/$D$80 -> 0 | L80: =J80*$L$2/511 -> 0 | M80: 2000 | N80: =IFERROR(L80*9550/K80,"-") -> - | S80: =N80*$L$2/511 -> 
B81: (69 Bar) | D81: 1.085 | E81: =D81*450 -> 488.25 | F81: =D81*200 -> 217 | H81: =$I$81/1000 -> 0 | I81: =$J$81*60 -> 0 | K81: =$J$81/$D$81 -> 0 | L81: =J81*$L$2/511 -> 0 | M81: 2000 | N81: =IFERROR(L81*9550/K81,"-") -> - | S81: =N81*$L$2/511 -> 
B82: (127 Bar) | D82: 1.068 | E82: =D82*450 -> 480.6 | F82: =D82*200 -> 213.6 | H82: =$I$82/1000 -> 0 | I82: =$J$82*60 -> 0 | K82: =$J$82/$D$82 -> 0 | L82: =J82*$L$2/511 -> 0 | M82: 2000 | N82: =IFERROR(L82*9550/K82,"-") -> - | S82: =N82*$L$2/511 -> 
B85: Q155H | D85: 0.967 | E85: =D85*450 -> 435.15 | F85: =D85*200 -> 193.4 | G85: =$L$2/(144/45) -> 3.125 | H85: =$I$85/1000 -> 0 | I85: =$J$85*60 -> 0 | K85: =$J$85/$D$85 -> 0 | L85: =J85*$L$2/511 -> 0 | M85: 2000 | N85: =IFERROR(L85*9550/K85,"-") -> - | S85: =N85*$L$2/511 -> 
B86: (69 Bar) | D86: 0.951 | E86: =D86*450 -> 427.95 | F86: =D86*200 -> 190.2 | H86: =$I$86/1000 -> 0 | I86: =$J$86*60 -> 0 | K86: =$J$86/$D$86 -> 0 | L86: =J86*$L$2/511 -> 0 | M86: 2000 | N86: =IFERROR(L86*9550/K86,"-") -> - | S86: =N86*$L$2/511 -> 
B87: (144 Bar) | D87: 0.936 | E87: =D87*450 -> 421.2 | F87: =D87*200 -> 187.2 | H87: 0 | I87: =$H$87*1000 -> 0 | J87: =$I$87/60 -> 0 | K87: =$J$87/$D$87 -> 0 | L87: =J87*$L$2/511 -> 0 | M87: 2000 | N87: =IFERROR(L87*9550/K87,"-") -> - | S87: =N87*$L$2/511 -> 
A89: Med Pressure | B89: Q155K
B90: (35 Bar) | D90: 0.7 | E90: 173 | F90: 76.88888889 | G90: =$L$2/(207/45) -> 2.173913043 | H90: =$I$90/1000 -> 0 | I90: =$J$90*60 -> 0 | K90: =$J$90/$D$90 -> 0 | L90: =J90*$L$2/511 -> 0 | M90: 2000 | N90: =IFERROR(L90*9550/K90,"-") -> - | S90: =N90*$L$2/511 -> 
B91: (103 bar) | D91: 0.685 | E91: 179 | F91: 80 | H91: =$I$91/1000 -> 0 | I91: =$J$91*60 -> 0 | K91: =$J$91/$D$91 -> 0 | L91: =J91*$L$2/511 -> 0 | M91: 2000 | N91: =IFERROR(L91*9550/K91,"-") -> - | S91: =N91*$L$2/511 -> 
B92: (207 bar) | D92: 0.654 | E92: 184 | F92: 82 | H92: 0 | I92: =$H$92*1000 -> 0 | J92: =$I$92/60 -> 0 | K92: =$J$92/$D$92 -> 0 | L92: =J92*$L$2/511 -> 0 | M92: 2000 | N92: =IFERROR(L92*9550/K92,"-") -> - | S92: =N92*$L$2/511 -> 
B94: Q155M
B95: (241 bar) | D95: 0.547 | E95: =D95*450 -> 246.15 | F95: =E95*200/450 -> 109.4 | G95: =$L$2/(241/45) -> 1.867219917 | H95: =$I$95/1000 -> 0 | I95: =$J$95*60 -> 0 | K95: =$J$95/$D$95 -> 0 | L95: =J95*$L$2/511 -> 0 | M95: 2000 | N95: =IFERROR(L95*9550/K95,"-") -> - | S95: =N95*$L$2/511 -> 
E96: @ 400 rpm | F96: @ 40rpm (Minimum Speed) | G96: Minimum speed at input discharge pressure RPM
A97: Med Pressure | B97: T200K | W97: Pick the row which is closest to the operating discharge pressure to enter flow rate.
B98: (207 bar) | D98: 0.914 | E98: =D98*400 -> 365.6 | F98: =E98/10 -> 36.56 | G98: =$L$2/(207/40) -> 1.93236715 | H98: =$I$61/1000 -> 0 | I98: =$J$61*60 -> 0 | K98: =$J$61/$D$61 -> 0 | L98: =J98*$L$2/511 -> 0 | M98: 2000 | N98: =IFERROR(L98*9550/K98,"-") -> - | S98: =N98*$L$2/511 -> 
B99: (103 bar) | D99: 0.949 | E99: =D99*400 -> 379.6 | F99: =E99/10 -> 37.96 | H99: =$I$62/1000 -> 0 | I99: =$J$62*60 -> 0 | K99: =$J$62/$D$62 -> 0 | L99: =J99*$L$2/511 -> 0 | M99: 2000 | N99: =IFERROR(L99*9550/K99,"-") -> - | S99: =N99*$L$2/511 -> 
B100: (35 bar) | D100: 0.969 | E100: 387.6 | F100: 38.76 | H100: =$I$63/1000 -> 0 | I100: =$J$63*60 -> 0 | K100: =$J$63/$D$63 -> 0 | L100: =J100*$L$2/511 -> 0 | M100: 2000 | N100: =IFERROR(L100*9550/K100,"-") -> - | S100: =N100*$L$2/511 -> 
B102: T200M
B103: (245 bar) | D103: 0.8 | E103: =D103*400 -> 320 | F103: =E103/10 -> 32 | G103: =$L$2/(245/40) -> 1.632653061 | H103: =$I$66/1000 -> 0 | I103: =$J$66*60 -> 0 | K103: =$J$66/$D$66 -> 0 | L103: =J103*$L$2/511 -> 0 | M103: 2000 | N103: =IFERROR(L103*9550/K103,"-") -> - | S103: =N103*$L$2/511 -> 
A105: High Pressure | B105: T200P
B106: (35 Bar) | D106: 0.768 | E106: =D106*400 -> 307.2 | F106: =E106/10 -> 30.72 | G106: =$L$2/(276/40) -> 1.449275362 | H106: =$I$69/1000 -> 0 | I106: =$H$106*1000 -> 0 | J106: =$I$106/60 -> 0 | K106: =$J$106/$D$106 -> 0 | L106: =J106*$L$2/511 -> 0 | M106: 2000 | N106: =IFERROR(L106*9550/K106,"-") -> - | S106: =N106*$L$2/511 -> 
B107: (138 Bar) | D107: 0.749 | E107: 299.6 | F107: 29.96 | H107: =$I$70/1000 -> 0 | I107: =$J$70*60 -> 0 | K107: =$J$70/$D$70 -> 0 | L107: =J107*$L$2/511 -> 0 | M107: 2000 | N107: =IFERROR(L107*9550/K107,"-") -> - | S107: =N107*$L$2/511 -> 
B108: (276 Bar) | D108: 0.712 | E108: 284.8 | F108: 28.48 | H108: =$I$71/1000 -> 0 | I108: =$J$71*60 -> 0 | K108: =$J$71/$D$71 -> 0 | L108: =J108*$L$2/511 -> 0 | M108: 2000 | N108: =IFERROR(L108*9550/K108,"-") -> - | S108: =N108*$L$2/511 -> 
B110: T200Q
B111: (35 Bar) | D111: 0.674 | E111: =D111*400 -> 269.6 | F111: =E111/10 -> 26.96 | G111: =$L$2/(310/40) -> 1.290322581 | H111: 0 | I111: =$H$111*1000 -> 0 | J111: =$I$111/60 -> 0 | K111: =$J$111/$D$111 -> 0 | L111: =J111*$L$2/511 -> 0 | M111: 2000 | N111: =IFERROR(L111*9550/K111,"-") -> - | S111: =N111*$L$2/511 -> 
B112: (155 Bar) | D112: 0.655 | E112: 262 | F112: 26.2 | H112: 0 | I112: =$H$112*1000 -> 0 | J112: =$I$112/60 -> 0 | K112: =$J$112/$D$112 -> 0 | L112: =J112*$L$2/511 -> 0 | M112: 2000 | N112: =IFERROR(L112*9550/K112,"-") -> - | S112: =N112*$L$2/511 -> 
B113: (310 Bar) | D113: 0.625 | E113: 250 | F113: 25 | H113: 0 | I113: =$H$113*1000 -> 0 | J113: =$I$113/60 -> 0 | K113: =$J$113/$D$113 -> 0 | L113: =J113*$L$2/511 -> 0 | M113: 2000 | N113: =IFERROR(L113*9550/K113,"-") -> - | S113: =N113*$L$2/511 -> 
B114: Actual flows may vary by +/- 5%

Sheet Oil Change Intervals (hidden)
B2: G20 | C2: Series | E2: G15 | F2: Series | H2: G03 | I2: Series | K2: G25 | L2: Series | N2: G04 | O2: Series | Q2: G35 | R2: Series | T2: G10 | U2: Series
B3: 950 | C3: 4000 | E3: 1200 | F3: 4000 | H3: 1050 | I3: 4000 | K3: 550 | L3: 4000 | N3: 2150 | O3: 4000 | Q3: 650 | R3: 4000 | T3: 950 | U3: 4000
B4: 1350 | C4: 3000 | E4: 1900 | F4: 3000 | H4: 1550 | I4: 3000 | K4: 750 | L4: 3000 | N4: 3250 | O4: 3000 | Q4: 1000 | R4: 3000 | T4: 1350 | U4: 3000
B5: 1750 | C5: 2000 | E5: 2200 | F5: 2000 | H5: 2100 | I5: 2000 | K5: 1150 | L5: 2000 | N5: 4350 | O5: 2000 | Q5: 1380 | R5: 2000 | T5: 1750 | U5: 2000
B6: 2100 | C6: 1000 | E6: 2450 | F6: 1000 | H6: 2500 | I6: 1000 | K6: 1350 | L6: 1000 | N6: 5200 | O6: 1000 | Q6: 1650 | R6: 1000 | T6: 2100 | U6: 1000
B7: Slope | C7: =SLOPE(C3:C6,B3:B6) -> -2.594776748 | E7: Slope | F7: =SLOPE(F3:F6,E3:E6) -> -2.309337135 | H7: Slope | I7: =SLOPE(I3:I6,H3:H6) -> -2.033195021 | K7: Slope | L7: =SLOPE(L3:L6,K3:K6) -> -3.5 | N7: Slope | O7: =SLOPE(O3:O6,N3:N6) -> -0.9721398933 | Q7: Slope | R7: =SLOPE(R3:R6,Q3:Q6) -> -2.9452771 | T7: Slope | U7: =SLOPE(U3:U6,T3:T6) -> -2.594776748 | V7: =INTERCEPT(U3:U6,T3:T6) -> 6489.46925
B8: Intercept | C8: =INTERCEPT(C3:C6,B3:B6) -> 6489.46925 | E8: Intercept | F8: =INTERCEPT(F3:F6,E3:E6) -> 6974.340699 | H8: Intercept | I8: =INTERCEPT(I3:I6,H3:H6) -> 6159.751037 | K8: Intercept | L8: =INTERCEPT(L3:L6,K3:K6) -> 5825 | N8: Intercept | O8: =INTERCEPT(O3:O6,N3:N6) -> 6133.372851 | Q8: Intercept | R8: =INTERCEPT(R3:R6,Q3:Q6) -> 5945.974207 | T8: Intercept
B16: Temperature | C16: Factor
B18: 35 | C18: 1.3
B19: 60 | C19: 1.6
B20: 85 | C20: 2
B21: 105 | C21: 2.5

Sheet T100 Oil Change (hidden)

Sheet Torque (hidden)
B2: Torque Calculation for Hydra-Cell pumps
D4: Using: | F4: Nm = | G4: kW | H4: X | I4: 9550
H5: r.p.m.
B7: ENTER | C7: > | D7: kW: | F7: 1 | G7: speed, r.p.m.: | I7: 500
D9: Torque required = | G9: =F7*9550/I7 -> 19.1 | H9: Nm
G15: KW = Nm*RPM/9550
G17: Torque | H17: 19.1 | I17: Nm
G18: RPM | H18: 500
G19: Power | H19: =H17*H18/9550 -> 1 | I19: kW

Sheet MotorInverter Approx KW (hidden)
B4: Mains supply frequency f1 (Hz) | C4: 50
B6: Requirred frequency for rpm f2 (Hz) | C6: 100
B8: Power of motor at supply frenquency P1 (KW) | C8: 1
B10: Approx Power of motor at requirred RPM P2 (KW) | C10: =(POWER((C6/C4),2))*C8 -> 4
